bitfinex/quotes_SOLUSD_20240703
["timestamp","ask_amount","ask_price","bid_price","bid_amount"]
[1720010441388,8.34501955,141.95,141.81,0.17]
[1720010441784,8.34501955,141.95,141.82,15.9741]
[1720010441997,8.34501955,141.95,141.83,6.3326]
[1720010442204,0.833238,141.95,141.83,6.3326]
[1720010443405,0.833238,141.95,141.84,16.2517]
[1720010443706,0.833238,141.95,141.85,0.17]
[1720010444093,0.833238,141.95,141.87,21.8808]
[1720010444292,0.833238,141.95,141.88,0.17]
[1720010444496,0.833238,141.95,141.88,0.34]
[1720010445082,0.833238,141.95,141.88,0.17]
[1720010446209,0.833238,141.95,141.87,21.8808]
[1720010449192,0.17,141.94,141.87,21.8808]
[1720010450691,0.833238,141.95,141.87,21.8808]
[1720010452012,0.833238,141.95,141.88,0.17]
[1720010452416,0.833238,141.95,141.88,0.34]
[1720010453392,37.67,142.03,141.89,22.5887]
[1720010453604,12.687,142.08,141.91,22.5887]
[1720010453921,12.687,142.08,141.92,1.5787449]
[1720010454217,12.687,142.08,141.92,0.17]
[1720010455190,37.67,142.04,141.91,22.5887]
[1720010455986,0.17,142.03,141.91,22.5887]
[1720010456224,20.17,142.03,141.91,22.5887]
[1720010456399,0.17,142.02,141.91,22.5887]
[1720010457089,20.17,142.03,141.91,22.5887]
[1720010457288,0.17,142.03,141.91,22.5887]
[1720010457908,0.34,142.04,141.91,22.5887]
[1720010458090,0.34,142.05,141.91,22.5887]
[1720010458291,2.93073732,142.04,141.91,22.5887]
[1720010458714,0.34,142.03,141.91,22.5887]
[1720010464111,37.67,142.02,141.91,22.5887]
[1720010464289,0.17,142.01,141.91,22.5887]
[1720010464495,20.17,142.01,141.91,22.5887]
[1720010465195,20.0,142.01,141.91,22.5887]
[1720010465411,20.0,142.01,141.9,0.17]
[1720010465412,2.93073732,142.04,141.93,6.3928]
[1720010465615,37.67,142.06,141.94,16.5488]
[1720010466013,107.0875,142.13,141.93,6.3928]
[1720010466014,0.833238,142.1,141.96,16.5488]
[1720010466219,0.833238,142.1,141.95,0.17]
[1720010466220,38.503238,142.1,141.97,22.9416]
[1720010467114,20.0,142.09,141.97,22.9416]
[1720010467330,0.17,142.08,141.97,22.9416]
[1720010467695,0.34,142.08,141.97,22.9416]
[1720010467893,20.0,142.09,141.97,22.9416]
[1720010468314,20.0,142.09,141.98,22.0068]
[1720010469619,37.67,142.06,141.98,22.0068]
[1720010469818,0.34,142.05,141.98,22.0068]
[1720010470000,20.34,142.05,141.98,22.0068]
[1720010470711,20.34,142.05,141.92,5.99175956]
[1720010470712,37.67,142.02,141.95,22.0577]
[1720010470917,20.17,142.01,141.95,22.0577]
[1720010471408,20.0,142.01,141.95,22.0577]
[1720010472107,20.0,142.05,141.95,22.0577]
[1720010472514,20.0,142.05,141.85,213.12166543]
[1720010472515,37.67,142.06,141.97,22.8497]
[1720010472822,41.43397532,142.1,141.98,23.0197]
[1720010473523,41.43397532,142.1,141.98,22.8497]
[1720010473706,33.42,142.04,141.98,22.8497]
[1720010473904,16.7534,142.04,141.98,22.8497]
[1720010474309,33.42,142.07,141.98,22.8497]
[1720010474915,33.42,142.07,141.99,0.17]
[1720010475231,33.42,142.07,141.98,22.8497]
[1720010475727,38.423238,142.1,141.98,22.8497]
[1720010476041,38.423238,142.1,141.99,0.17]
[1720010476204,20.17,142.09,141.99,0.17]
[1720010476407,20.0,142.09,141.98,22.8497]
[1720010476707,38.423238,142.1,142.0,16.5623]
[1720010476708,0.833238,142.1,142.0,16.5623]
[1720010476908,0.833238,142.1,142.01,6.2609]
[1720010477317,37.59,142.08,142.01,6.2609]
[1720010477619,0.17,142.07,142.01,6.2609]
[1720010477798,37.59,142.08,142.01,6.2609]
[1720010478002,0.833238,142.1,142.01,6.2609]
[1720010478317,0.17,142.09,142.01,6.2609]
[1720010478526,20.0,142.09,142.01,6.2609]
[1720010478826,38.423238,142.1,142.01,6.2609]
[1720010479424,0.833238,142.1,142.02,15.4894]
[1720010479603,0.833238,142.1,142.03,6.5462]
[1720010479809,0.833238,142.1,142.03,6.3762]
[1720010483026,37.59,142.09,142.03,6.3762]
[1720010483313,20.0,142.08,142.03,6.3762]
[1720010484610,0.17,142.07,142.02,15.4894]
[1720010484809,0.34,142.07,142.0,6.4303]
[1720010485008,37.59,142.05,142.0,6.4303]
[1720010485222,20.0,142.04,142.0,6.4303]
[1720010485829,20.0,142.09,142.0,6.4303]
[1720010486803,38.423238,142.1,142.01,15.0005]
[1720010488220,0.34,142.09,142.01,15.0005]
[1720010488626,0.17,142.09,142.01,15.0005]
[1720010489016,37.59,142.08,142.01,15.0005]
[1720010489216,20.0,142.07,142.01,15.0005]
[1720010492614,0.833238,142.1,142.01,15.0005]
[1720010492815,0.833238,142.1,142.03,6.3701]
[1720010494733,0.833238,142.1,142.04,16.164]
[1720010495837,34.223238,142.1,142.04,16.164]
[1720010496137,0.833238,142.1,142.05,6.0185]
[1720010496635,33.39,142.13,142.05,6.0185]
[1720010496832,33.39,142.13,142.06,0.17]
[1720010498226,5.5995,142.23,142.07,22.3923]
[1720010498535,33.39,142.15,142.08,0.17]
[1720010499242,5.5995,142.23,142.08,0.17]
[1720010499426,33.39,142.16,142.08,0.34]
[1720010499733,0.833238,142.24,142.09,21.8996]
[1720010499919,33.39,142.19,142.1,6.919]
[1720010500228,33.39,142.19,142.1,6.749]
[1720010500430,33.39,142.17,142.1,6.749]
[1720010502329,34.223238,142.24,142.1,6.579]
[1720010502522,33.39,142.14,142.1,6.579]
[1720010502827,33.39,142.15,142.1,6.579]
[1720010503140,20.0,142.14,142.1,6.579]
[1720010503836,0.833238,142.24,142.12,21.8957]
[1720010504024,33.39,142.23,142.12,21.8957]
[1720010504221,0.833238,142.24,142.14,15.3488]
[1720010504544,34.223238,142.24,142.14,15.3488]
[1720010505117,34.223238,142.24,142.15,0.34]
[1720010505323,34.223238,142.24,142.15,0.17]
[1720010505834,0.833238,142.24,142.15,0.34]
[1720010506039,0.833238,142.24,142.15,0.17]
[1720010506336,0.833238,142.24,142.15,0.34]
[1720010506540,0.833238,142.24,142.15,0.17]
[1720010508129,0.833238,142.24,142.16,6.5892]
[1720010508330,0.833238,142.24,142.17,0.17]
[1720010508525,0.833238,142.24,142.18,15.3838]
[1720010508828,0.833238,142.24,142.2,6.1635]
[1720010509142,0.833238,142.24,142.21,0.17]
[1720010509660,0.833238,142.38,142.23,6.1635]
[1720010509937,0.833238,142.38,142.24,0.34]
[1720010510119,0.833238,142.38,142.25,6.5382]
[1720010510318,0.833238,142.38,142.26,0.34]
[1720010510540,0.833238,142.38,142.26,0.17]
[1720010511320,37.5,142.36,142.25,6.5382]
[1720010511754,0.833238,142.38,142.25,6.5382]
[1720010511755,6.1597,142.37,142.25,6.5382]
[1720010512046,37.5,142.35,142.26,0.17]
[1720010512238,0.833238,142.38,142.26,0.17]
[1720010512436,38.333238,142.38,142.26,0.17]
[1720010512623,20.0,142.37,142.26,0.17]
[1720010513547,38.333238,142.38,142.26,0.17]
[1720010514229,0.833238,142.38,142.26,0.34]
[1720010514427,0.833238,142.38,142.27,22.6821]
[1720010514636,0.833238,142.38,142.29,16.136]
[1720010514853,0.833238,142.38,142.3,0.34]
[1720010515741,0.833238,142.38,142.3,0.17]
[1720010516154,0.833238,142.38,142.3,0.34]
[1720010517052,0.833238,142.38,142.3,0.17]
[1720010518044,0.833238,142.38,142.29,16.136]
[1720010520654,0.833238,142.38,142.3,0.17]
[1720010521241,0.833238,142.38,142.3,0.34]
[1720010521641,0.833238,142.38,142.3,0.17]
[1720010521847,0.833238,142.38,142.29,16.136]
[1720010524076,59.5418,142.36,142.24,6.6279]
[1720010524248,59.5418,142.36,142.2,15.7828]
[1720010524249,37.5,142.32,142.2,15.7828]
[1720010524450,20.34,142.31,142.2,15.7828]
[1720010524651,37.5,142.28,142.2,15.7828]
[1720010524859,20.17,142.27,142.2,15.7828]
[1720010525539,20.0,142.27,142.2,15.7828]
[1720010526872,22.0418,142.36,142.2,15.7828]
[1720010527171,37.5,142.34,142.2,15.7828]
[1720010527465,20.0,142.33,142.2,15.7828]
[1720010528254,20.0,142.33,142.21,0.34]
[1720010528567,37.5,142.34,142.21,0.34]
[1720010529339,41.26397532,142.38,142.21,0.34]
[1720010530260,20.0,142.37,142.21,0.34]
[1720010530445,20.0,142.37,142.22,6.2022]
[1720010530644,20.0,142.37,142.23,0.34]
[1720010531953,41.26397532,142.38,142.23,0.34]
[1720010532353,38.333238,142.38,142.24,15.522]
[1720010532569,38.333238,142.38,142.25,0.34]
[1720010532749,38.333238,142.38,142.25,0.17]
[1720010533270,38.333238,142.38,142.24,15.522]
[1720010533456,37.5,142.34,142.24,15.522]
[1720010534783,0.17,142.35,142.25,0.34]
[1720010535073,38.333238,142.38,142.26,6.3044]
[1720010535264,0.17,142.37,142.27,0.17]
[1720010535457,20.17,142.37,142.26,6.3044]
[1720010535657,20.17,142.37,142.27,0.17]
[1720010536271,20.17,142.37,142.27,0.34]
[1720010536970,20.0,142.37,142.27,0.34]
[1720010537170,20.0,142.37,142.27,0.17]
[1720010537372,0.34,142.36,142.26,6.3044]
[1720010538259,20.0,142.37,142.26,6.3044]
[1720010538761,20.0,142.37,142.27,0.17]
[1720010540651,1.003238,142.38,142.27,0.34]
[1720010540851,0.17,142.37,142.27,0.34]
[1720010541775,0.833238,142.38,142.27,0.34]
[1720010542274,0.17,142.37,142.27,0.17]
[1720010543058,0.833238,142.38,142.27,0.34]
[1720010543478,0.833238,142.38,142.28,22.7634]
[1720010543660,0.833238,142.38,142.3,6.3229]
[1720010543860,0.833238,142.38,142.31,0.34]
[1720010544675,0.833238,142.38,142.32,15.9161]
[1720010544883,0.833238,142.38,142.33,0.34]
[1720010548080,20.0,142.49,142.37,0.34]
[1720010549077,37.57197201,142.5,142.38,21.5915]
[1720010549377,37.57197201,142.5,142.39,0.17]
[1720010550079,2.93073732,142.49,142.37,6.2549]
[1720010550282,0.34,142.48,142.37,6.2549]
[1720010551464,22.93073732,142.49,142.38,0.34]
[1720010551981,20.0,142.49,142.38,0.34]
[1720010552175,5.80580493,142.5,142.38,0.17]
[1720010552683,5.80580493,142.5,142.38,0.34]
[1720010553492,20.0,142.49,142.38,0.17]
[1720010554199,0.34,142.48,142.38,0.17]
[1720010554687,0.17,142.48,142.38,0.17]
[1720010554875,20.0,142.49,142.38,0.34]
[1720010555061,0.17,142.48,142.38,0.17]
[1720010555259,0.34,142.48,142.38,0.17]
[1720010555465,0.34,142.48,142.37,6.2549]
[1720010555779,33.24,142.45,142.37,6.2549]
[1720010556081,20.0,142.44,142.37,6.2549]
[1720010556462,33.24,142.42,142.37,6.2549]
[1720010556665,33.24,142.39,142.37,6.2549]
[1720010556890,33.24,142.39,142.35,15.3366]
[1720010556891,20.0,142.38,142.35,15.3366]
[1720010557088,5.80580493,142.5,142.35,15.3366]
[1720010557296,33.24,142.42,142.35,15.3366]
[1720010557465,20.0,142.41,142.35,15.3366]
[1720010558375,20.0,142.41,142.36,0.17]
[1720010558577,33.24,142.42,142.36,0.17]
[1720010559169,20.0,142.41,142.35,15.3366]
[1720010559613,20.0,142.41,142.36,0.17]
[1720010559901,33.24,142.44,142.35,15.3366]
[1720010560083,20.0,142.43,142.35,15.3366]
[1720010560389,20.0,142.43,142.33,6.4916]
[1720010560390,33.24,142.41,142.33,6.4916]
[1720010560591,20.17,142.4,142.33,6.4916]
[1720010560968,33.24,142.38,142.33,6.4916]
[1720010561163,20.0,142.4,142.33,6.4916]
[1720010561383,33.24,142.38,142.33,6.4916]
[1720010561964,20.0,142.48,142.33,6.4916]
[1720010562166,33.24,142.41,142.33,6.4916]
[1720010562478,20.0,142.4,142.33,6.4916]
[1720010563393,20.0,142.4,142.34,0.17]
[1720010564484,20.0,142.4,142.33,6.4916]
[1720010566291,20.0,142.4,142.34,0.17]
[1720010566687,20.0,142.44,142.34,0.17]
[1720010566989,33.24,142.41,142.34,0.17]
[1720010567172,20.0,142.4,142.34,0.17]
[1720010567575,20.0,142.4,142.34,0.34]
[1720010567773,33.24,142.43,142.34,0.34]
[1720010568489,33.24,142.43,142.34,0.17]
[1720010568664,33.24,142.4,142.33,6.4916]
[1720010569489,20.0,142.39,142.33,6.4916]
[1720010570783,20.0,142.39,142.34,0.34]
[1720010570971,20.0,142.42,142.34,0.34]
[1720010572097,20.0,142.42,142.34,0.17]
[1720010572279,20.0,142.42,142.33,6.4916]
[1720010572995,33.24,142.4,142.33,6.4916]
[1720010573290,20.0,142.39,142.33,6.4916]
[1720010574685,33.24,142.37,142.33,6.4916]
[1720010574988,20.0,142.36,142.33,6.4916]
[1720010576296,20.0,142.36,142.3,6.3187]
[1720010576594,33.24,142.34,142.3,6.3187]
[1720010576969,20.0,142.33,142.3,6.3187]
[1720010577400,20.0,142.33,142.27,22.5982]
[1720010578093,33.24,142.31,142.27,6.2793]
[1720010578273,20.0,142.3,142.24,6.0164]
[1720010579482,33.24,142.28,142.24,6.0164]
[1720010579784,0.17,142.32,142.24,6.0164]
[1720010579785,20.0,142.27,142.24,6.0164]
[1720010579987,20.0,142.27,142.17,22.8909]
[1720010580297,0.17,142.28,142.17,22.8909]
[1720010582773,0.34,142.29,142.17,22.8909]
[1720010582977,43.55383292,142.29,142.17,22.8909]
[1720010583178,20.0,142.28,142.17,6.4478]
[1720010583401,0.34,142.27,142.17,6.4478]
[1720010583778,6.07383292,142.27,142.17,6.4478]
[1720010583978,20.0,142.26,142.17,6.4478]
[1720010584181,0.17,142.25,142.17,6.4478]
[1720010584878,20.0,142.26,142.17,6.4478]
[1720010585074,37.48,142.29,142.17,6.4478]
[1720010585075,20.0,142.28,142.17,6.4478]
[1720010585701,20.0,142.28,142.18,0.17]
[1720010585886,37.48,142.29,142.19,15.3288]
[1720010586198,21.76413292,142.31,142.19,15.3288]
[1720010586607,5.73383292,142.3,142.19,15.3288]
[1720010586815,37.48,142.29,142.19,15.3288]
[1720010587297,20.0,142.28,142.19,15.3288]
[1720010587498,5.73383292,142.3,142.19,15.3288]
[1720010587801,37.48,142.33,142.2,0.34]
[1720010588190,37.48,142.33,142.19,15.3288]
[1720010588395,37.48,142.33,142.17,6.4478]
[1720010588396,37.48,142.29,142.17,6.4478]
[1720010588597,6.08403848,142.28,142.17,6.4478]
[1720010589004,20.0,142.27,142.17,6.4478]
[1720010589306,26.08403848,142.27,142.17,6.4478]
[1720010589510,0.34,142.26,142.17,6.4478]
[1720010590100,37.48,142.25,142.09,21.7146]
[1720010590399,20.34,142.24,142.09,21.7146]
[1720010592011,20.34,142.24,142.1,0.17]
[1720010592228,20.34,142.24,142.11,6.0911]
[1720010592393,20.34,142.24,142.12,0.34]
[1720010594818,20.34,142.24,142.11,6.0911]
[1720010594819,15.5347,142.22,142.11,6.0911]
[1720010595035,37.48,142.16,142.08,6.6575]
[1720010595201,20.17,142.15,142.08,6.6575]
[1720010597117,20.0,142.15,142.08,6.6575]
[1720010599605,0.17,142.14,142.08,6.6575]
[1720010601107,20.0,142.15,142.08,6.6575]
[1720010602919,0.34,142.14,142.06,1.0012]
[1720010604627,20.0,142.15,142.06,1.0012]
[1720010605322,0.17,142.14,142.06,1.0012]
[1720010606322,0.34,142.14,142.06,1.0012]
[1720010606643,20.0,142.15,142.06,1.0012]
[1720010606803,23.16104266,142.22,142.06,1.0012]
[1720010607122,6.41481626,142.2,142.07,0.34]
[1720010608015,20.0,142.19,142.07,0.34]
[1720010608203,0.34,142.18,142.07,0.34]
[1720010611021,0.34,142.18,142.06,1.0012]
[1720010612213,0.34,142.18,142.07,0.17]
[1720010612403,0.34,142.18,142.07,0.34]
[1720010612743,0.17,142.18,142.08,6.2878]
[1720010613028,0.17,142.18,142.1,15.0124]
[1720010614211,57.48,142.19,142.1,15.0124]
[1720010614542,20.0,142.19,142.1,15.0124]
[1720010614719,20.0,142.19,142.12,6.3395]
[1720010614915,43.89481626,142.24,142.12,6.3395]
[1720010615837,43.89481626,142.24,142.13,0.17]
[1720010616645,6.41481626,142.24,142.14,21.8157]
[1720010616943,4.82767676,142.29,142.15,0.17]
[1720010617106,6.41481626,142.29,142.15,0.34]
[1720010617444,6.41481626,142.29,142.15,1.74640573]
[1720010617806,6.41481626,142.29,142.16,6.429]
[1720010618014,6.41481626,142.29,142.17,0.17]
[1720010618422,20.0,142.28,142.17,0.17]
[1720010618626,6.41481626,142.29,142.18,22.2472]
[1720010618823,37.48,142.31,142.2,6.429]
[1720010619205,37.48,142.31,142.21,0.17]
[1720010619607,37.48,142.31,142.2,6.429]
[1720010620241,0.17,142.3,142.2,6.429]
[1720010620612,0.34,142.3,142.2,6.429]
[1720010621414,20.34,142.3,142.2,6.429]
[1720010621740,20.17,142.3,142.2,6.429]
[1720010621941,20.17,142.3,142.21,0.17]
[1720010623225,20.0,142.3,142.21,0.17]
[1720010624513,20.0,142.3,142.21,0.57519237]
[1720010624717,20.0,142.3,142.22,15.4124]
[1720010624920,20.0,142.33,142.22,15.4124]
[1720010625121,0.17,142.32,142.22,15.4124]
[1720010625923,0.17,142.32,142.23,0.17]
[1720010626441,0.17,142.32,142.22,15.4124]
[1720010626810,6.41481626,142.34,142.23,6.2082]
[1720010627216,6.41481626,142.34,142.24,0.17]
[1720010627616,37.48,142.38,142.24,0.17]
[1720010627826,6.41481626,142.37,142.25,15.6132]
[1720010628127,6.41481626,142.37,142.26,6.3154]
[1720010628921,0.17,142.36,142.26,6.3154]
[1720010629323,0.34,142.36,142.26,6.3154]
[1720010629527,20.34,142.36,142.26,6.3154]
[1720010631741,33.29,142.34,142.26,6.3154]
[1720010631925,20.0,142.33,142.26,6.3154]
[1720010632839,33.29,142.34,142.26,6.3154]
[1720010633038,20.0,142.33,142.26,6.3154]
[1720010636147,20.0,142.33,142.27,0.17]
[1720010636356,20.0,142.33,142.26,6.3154]
[1720010637148,20.0,142.36,142.27,0.34]
[1720010637344,20.0,142.37,142.27,0.34]
[1720010637651,33.29,142.38,142.27,0.34]
[1720010637652,33.29,142.38,142.28,21.8641]
[1720010637944,33.29,142.38,142.29,0.17]
[1720010638144,6.41481626,142.41,142.29,0.17]
[1720010638342,33.29,142.37,142.29,0.17]
[1720010638747,33.29,142.37,142.29,0.34]
[1720010639125,20.0,142.36,142.29,0.34]
[1720010641132,20.0,142.36,142.28,21.8641]
[1720010641323,20.0,142.36,142.29,0.34]
[1720010641728,20.0,142.36,142.28,21.8641]
[1720010641927,33.46,142.35,142.28,21.8641]
[1720010642122,20.0,142.34,142.28,21.8641]
[1720010646251,53.29,142.34,142.28,21.8641]
[1720010646457,33.29,142.31,142.24,21.7528]
[1720010646630,33.29,142.29,142.24,21.7528]
[1720010647053,20.17,142.28,142.24,21.7528]
[1720010649053,33.29,142.26,142.24,21.7528]
[1720010649245,20.0,142.25,142.21,6.3428]
[1720010650042,20.0,142.26,142.21,6.3428]
[1720010650751,20.0,142.3,142.21,6.3428]
[1720010651957,20.0,142.3,142.22,0.34]
[1720010652133,20.0,142.31,142.22,0.17]
[1720010652331,33.29,142.32,142.22,0.17]
[1720010652533,33.29,142.32,142.22,0.34]
[1720010652927,39.8458,142.38,142.23,22.1169]
[1720010653150,39.70481626,142.34,142.24,0.34]
[1720010653455,39.70481626,142.34,142.24,0.17]
[1720010653654,20.0,142.33,142.24,0.17]
[1720010654755,20.0,142.33,142.24,0.34]
[1720010655461,33.29,142.31,142.23,22.1169]
[1720010655636,20.0,142.3,142.23,22.1169]
[1720010661963,20.0,142.36,142.28,0.34]
[1720010664738,20.0,142.36,142.28,1.74514832]
[1720010665156,20.0,142.36,142.29,6.3694]
[1720010665340,20.0,142.36,142.3,1.57495082]
[1720010665675,20.0,142.36,142.3,0.17]
[1720010666047,20.0,142.38,142.3,0.17]
[1720010666453,20.0,142.38,142.29,6.3694]
[1720010667239,33.29,142.36,142.29,6.3694]
[1720010667646,20.0,142.35,142.29,6.3694]
[1720010668565,33.29,142.34,142.29,6.3694]
[1720010668758,20.0,142.33,142.29,6.3694]
[1720010671657,33.29,142.31,142.27,16.46]
[1720010671850,20.0,142.3,142.27,16.46]
[1720010674461,20.0,142.3,142.25,6.4108]
[1720010676147,20.0,142.32,142.25,6.4108]
[1720010681677,6.41481626,142.36,142.25,6.4108]
[1720010681867,39.70481626,142.36,142.26,0.34]
[1720010682273,39.70481626,142.36,142.26,0.17]
[1720010682456,39.70481626,142.36,142.25,6.4108]
[1720010683369,0.34,142.35,142.25,6.4108]
[1720010683676,20.34,142.35,142.25,6.4108]
[1720010685864,33.29,142.33,142.25,6.4108]
[1720010686180,20.0,142.32,142.25,6.4108]
[1720010689063,20.0,142.32,142.26,16.0657]
[1720010689273,16.0703,142.41,142.26,16.0657]
[1720010689274,33.29,142.38,142.27,0.34]
[1720010689486,33.29,142.38,142.28,6.2628]
[1720010689663,33.29,142.38,142.29,0.34]
[1720010690379,33.29,142.38,142.29,0.17]
[1720010690780,33.29,142.38,142.28,6.2628]
[1720010691181,16.0703,142.41,142.28,6.2628]
[1720010691182,33.29,142.35,142.28,6.2628]
[1720010691771,20.0,142.34,142.28,6.2628]
[1720010691970,20.0,142.35,142.28,6.2628]
[1720010694187,0.17,142.34,142.28,6.2628]
[1720010694573,20.0,142.35,142.28,6.2628]
[1720010695283,20.0,142.36,142.28,6.2628]
[1720010695684,20.0,142.38,142.28,6.2628]
[1720010696589,33.29,142.36,142.28,6.2628]
[1720010696776,20.0,142.35,142.28,6.2628]
[1720010698116,33.29,142.33,142.28,6.2628]
[1720010698391,33.29,142.3,142.26,16.0657]
[1720010698572,33.29,142.3,142.23,6.6041]
[1720010698769,20.17,142.29,142.23,6.6041]
[1720010699018,26.75481626,142.29,142.22,16.1999]
[1720010699172,33.29,142.27,142.22,16.1999]
[1720010699487,20.0,142.26,142.22,16.1999]
[1720010700688,20.0,142.26,142.2,6.6041]
[1720010700891,33.29,142.23,142.17,16.1999]
[1720010701301,33.29,142.23,142.16,6.6041]
[1720010701302,20.17,142.22,142.16,6.6041]
[1720010701591,53.29,142.22,142.16,6.6041]
[1720010703107,20.0,142.22,142.16,6.6041]
[1720010703276,53.29,142.25,142.16,6.6041]
[1720010703787,20.0,142.25,142.17,0.17]
[1720010704091,20.0,142.25,142.17,0.34]
[1720010705384,33.29,142.28,142.17,0.34]
[1720010705711,20.0,142.27,142.18,16.1988]
[1720010705921,20.0,142.27,142.19,0.17]
[1720010706774,20.0,142.27,142.19,0.34]
[1720010707400,53.29,142.29,142.19,0.34]
[1720010708508,53.29,142.29,142.2,6.3442]
[1720010708700,53.29,142.29,142.21,0.17]
[1720010708899,33.29,142.29,142.21,0.17]
[1720010709192,16.1416,142.39,142.22,22.5039]
[1720010709380,33.29,142.34,142.23,0.34]
[1720010710779,20.0,142.33,142.23,0.34]
[1720010714184,33.29,142.37,142.26,0.34]
[1720010715501,20.0,142.36,142.26,0.34]
[1720010715699,20.0,142.36,142.27,6.4755]
[1720010715889,20.0,142.37,142.28,0.34]
[1720010716290,39.70481626,142.38,142.28,0.34]
[1720010716594,33.29,142.42,142.3,6.4755]
[1720010716800,33.29,142.42,142.31,1.00758749]
[1720010717009,6.41481626,142.44,142.31,1.00758749]
[1720010717607,6.41481626,142.44,142.32,1.40472809]
[1720010717804,33.29,142.42,142.33,0.34]
[1720010718604,20.0,142.41,142.33,0.34]
[1720010719101,20.0,142.41,142.3,6.4755]
[1720010719304,20.0,142.41,142.31,0.34]
[1720010719890,33.29,142.4,142.31,0.34]
[1720010720089,20.0,142.39,142.31,0.34]
[1720010722703,20.0,142.41,142.31,0.34]
[1720010724403,33.29,142.39,142.3,6.4755]
[1720010724720,20.0,142.38,142.3,6.4755]
[1720010724902,33.29,142.37,142.3,6.4755]
[1720010725096,20.0,142.36,142.3,6.4755]
[1720010725992,20.17,142.4,142.3,6.4755]
[1720010726197,0.17,142.39,142.3,6.4755]
[1720010727007,20.17,142.4,142.3,6.4755]
[1720010727190,0.17,142.39,142.3,6.4755]
[1720010728621,52.6651,142.38,142.26,6.2653]
[1720010728840,23.27073732,142.37,142.26,6.2653]
[1720010729140,37.43,142.34,142.26,6.2653]
[1720010729323,20.34,142.33,142.26,6.2653]
[1720010730322,20.0,142.33,142.26,6.2653]
[1720010730500,6.41481626,142.34,142.26,6.2653]
[1720010730700,2.93073732,142.37,142.26,6.2653]
[1720010730921,9.34555358,142.37,142.26,6.2653]
[1720010731807,9.34555358,142.37,142.27,0.34]
[1720010732138,2.93073732,142.37,142.27,0.34]
[1720010732335,6.41481626,142.41,142.28,22.3572]
[1720010732628,6.41481626,142.41,142.29,1.745084]
[1720010733203,6.41481626,142.41,142.29,0.34]
[1720010733412,6.41481626,142.41,142.3,6.4458]
[1720010733712,6.41481626,142.41,142.32,16.4368]
[1720010734338,6.41481626,142.41,142.33,0.17]
[1720010734638,20.0,142.4,142.33,0.17]
[1720010734808,20.0,142.44,142.33,0.17]
[1720010735216,20.0,142.44,142.34,6.5864]
[1720010736029,43.84481626,142.45,142.35,15.7873]